[Event "Late-Titled-Tuesday-Blitz-July-09-2024"]
[Site "Chess.com"]
[Date "2024.07.09"]
[Round "6"]
[White "yaguigor"]
[Black "RodriQA"]
[Result "1-0"]
[WhiteElo "2628"]
[BlackElo "2449"]
[TimeControl "180+1"]
[EndTime "15:05:24 PDT"]
[Termination "yaguigor won on time"]

1. Nf3 {[%clk 0:03:00.9]} 1... d5 {[%clk 0:02:59.1]} 2. d3 {[%clk 0:02:59.9]}
2... Nf6 {[%clk 0:02:58.8]} 3. Nbd2 {[%clk 0:02:58.3]} 3... Bf5 {[%clk 0:02:56]}
4. g3 {[%clk 0:02:55.6]} 4... e6 {[%clk 0:02:56]} 5. Bg2 {[%clk 0:02:55.6]} 5...
h6 {[%clk 0:02:55.8]} 6. O-O {[%clk 0:02:52.8]} 6... Be7 {[%clk 0:02:55.5]} 7.
Re1 {[%clk 0:02:47.7]} 7... O-O {[%clk 0:02:54]} 8. e4 {[%clk 0:02:47.3]} 8...
Bh7 {[%clk 0:02:54.6]} 9. Qe2 {[%clk 0:02:38.4]} 9... Re8 {[%clk 0:02:46.6]} 10.
a4 {[%clk 0:02:32.5]} 10... c5 {[%clk 0:02:42]} 11. a5 {[%clk 0:02:27.4]} 11...
a6 {[%clk 0:02:38.9]} 12. e5 {[%clk 0:02:22]} 12... Nfd7 {[%clk 0:02:37.5]} 13.
c4 {[%clk 0:02:22.2]} 13... d4 {[%clk 0:02:31.6]} 14. Nb3 {[%clk 0:02:16.4]}
14... Nc6 {[%clk 0:02:30.6]} 15. Bd2 {[%clk 0:02:13.9]} 15... Qc7 {[%clk
0:02:21.6]} 16. h4 {[%clk 0:02:12.3]} 16... Bf5 {[%clk 0:01:43.8]} 17. h5 {[%clk
0:02:07.7]} 17... Bg4 {[%clk 0:01:39.4]} 18. Bf4 {[%clk 0:01:44.1]} 18... Bxh5
{[%clk 0:01:35.6]} 19. Bh3 {[%clk 0:01:35.4]} 19... g5 {[%clk 0:01:22]} 20. g4
{[%clk 0:01:30.3]} 20... Bg6 {[%clk 0:01:16.7]} 21. Bd2 {[%clk 0:01:30.4]} 21...
Bf8 {[%clk 0:01:09.6]} 22. Bg2 {[%clk 0:01:09.6]} 22... Bg7 {[%clk 0:01:08.8]}
23. Nc1 {[%clk 0:00:57.1]} 23... Ndxe5 {[%clk 0:00:52.7]} 24. Nxe5 {[%clk
0:00:56.1]} 24... Nxe5 {[%clk 0:00:53.6]} 25. f4 {[%clk 0:00:52.7]} 25... Nc6
{[%clk 0:00:52.1]} 26. fxg5 {[%clk 0:00:49.1]} 26... hxg5 {[%clk 0:00:49.6]} 27.
Bxg5 {[%clk 0:00:49.1]} 27... Qg3 {[%clk 0:00:23.8]} 28. Qf2 {[%clk 0:00:32.8]}
28... Qxf2+ {[%clk 0:00:23]} 29. Kxf2 {[%clk 0:00:32.5]} 29... f6 {[%clk
0:00:23.5]} 30. Bd2 {[%clk 0:00:31.5]} 30... Ne5 {[%clk 0:00:23]} 31. Bxb7
{[%clk 0:00:28.5]} 31... Ra7 {[%clk 0:00:22]} 32. Be4 {[%clk 0:00:26.7]} 32...
Nxg4+ {[%clk 0:00:20.2]} 33. Kg3 {[%clk 0:00:26.4]} 33... f5 {[%clk 0:00:20.7]}
34. Bc6 {[%clk 0:00:25.3]} 34... Rc8 {[%clk 0:00:14.4]} 35. Rxe6 {[%clk
0:00:24]} 35... Kf7 {[%clk 0:00:12.5]} 36. Bd5 {[%clk 0:00:24.1]} 36... Bh5
{[%clk 0:00:02.2]} 37. Rc6+ {[%clk 0:00:22.3]} 37... Ke7 {[%clk 0:00:02.1]} 38.
Rxc8 {[%clk 0:00:22.4]} 38... Be5+ {[%clk 0:00:02.7]} 39. Bf4 {[%clk 0:00:22.1]}
39... Bf6 {[%clk 0:00:02.8]} 40. Rc7+ {[%clk 0:00:21.2]} 40... Rxc7 {[%clk
0:00:03.3]} 41. Bxc7 {[%clk 0:00:21.6]} 41... Ne3 {[%clk 0:00:03.9]} 42. Bf4
{[%clk 0:00:19.1]} 42... Nc2 {[%clk 0:00:01]} 43. Ra2 {[%clk 0:00:16]} 43... Nb4
{[%clk 0:00:01]} 44. Ra3 {[%clk 0:00:16.3]} 44... Nc2 {[%clk 0:00:01.1]} 45. Rb3
{[%clk 0:00:16.3]} 1-0

[Event "Late-Titled-Tuesday-Blitz-July-09-2024"]
[Site "Chess.com"]
[Date "2024.07.09"]
[Round "6"]
[White "TheAlienParty"]
[Black "1g60-1"]
[Result "0-1"]
[WhiteElo "2324"]
[BlackElo "2468"]
[TimeControl "180+1"]
[EndTime "15:05:24 PDT"]
[Termination "1g60-1 won on time"]

1. e4 {[%clk 0:02:59.4]} 1... e6 {[%clk 0:03:00.3]} 2. Qe2 {[%clk 0:02:51.5]}
2... e5 {[%clk 0:02:56]} 3. Nf3 {[%clk 0:02:50.3]} 3... Nc6 {[%clk 0:02:55.8]}
4. c3 {[%clk 0:02:49.7]} 4... Bc5 {[%clk 0:02:38.2]} 5. g3 {[%clk 0:02:48.1]}
5... d6 {[%clk 0:02:31.6]} 6. h3 {[%clk 0:02:47.2]} 6... Nf6 {[%clk 0:02:25]} 7.
Bg2 {[%clk 0:02:46.7]} 7... h6 {[%clk 0:02:20.1]} 8. d3 {[%clk 0:02:43.5]} 8...
O-O {[%clk 0:02:14.2]} 9. Nbd2 {[%clk 0:02:40.7]} 9... a5 {[%clk 0:02:06.7]} 10.
g4 {[%clk 0:02:39.4]} 10... Nh7 {[%clk 0:02:05.9]} 11. Nf1 {[%clk 0:02:38.3]}
11... d5 {[%clk 0:02:00.4]} 12. Ng3 {[%clk 0:02:37.1]} 12... d4 {[%clk
0:01:58.1]} 13. Nf5 {[%clk 0:02:27]} 13... a4 {[%clk 0:01:40]} 14. c4 {[%clk
0:02:17]} 14... a3 {[%clk 0:01:37.6]} 15. bxa3 {[%clk 0:02:12.4]} 15... Bxa3
{[%clk 0:01:34.7]} 16. h4 {[%clk 0:02:07.7]} 16... Bxc1 {[%clk 0:01:28.6]} 17.
Rxc1 {[%clk 0:02:07]} 17... Kh8 {[%clk 0:01:17.3]} 18. Qd2 {[%clk 0:01:56.8]}
18... Bxf5 {[%clk 0:01:11.3]} 19. gxf5 {[%clk 0:01:54]} 19... Nf6 {[%clk
0:01:10]} 20. Rb1 {[%clk 0:01:48.3]} 20... b6 {[%clk 0:00:57.1]} 21. O-O {[%clk
0:01:38.1]} 21... Nh5 {[%clk 0:00:56.7]} 22. Rb5 {[%clk 0:01:37.3]} 22... Nf4
{[%clk 0:00:51.2]} 23. Nxe5 {[%clk 0:01:33.1]} 23... Nxe5 {[%clk 0:00:51]} 24.
Rxe5 {[%clk 0:01:32.3]} 24... Qxh4 {[%clk 0:00:50.7]} 25. Rd1 {[%clk 0:01:22.1]}
25... Qg4 {[%clk 0:00:43.5]} 26. f3 {[%clk 0:01:21.6]} 26... Qg3 {[%clk
0:00:43.6]} 27. Rb5 {[%clk 0:01:08]} 27... Ra3 {[%clk 0:00:37.9]} 28. Rb3 {[%clk
0:01:04.5]} 28... Rfa8 {[%clk 0:00:36.9]} 29. Rdb1 {[%clk 0:00:33.3]} 29... Rxa2
{[%clk 0:00:34.3]} 30. R3b2 {[%clk 0:00:23.2]} 30... Rxb2 {[%clk 0:00:29.3]} 31.
Qxb2 {[%clk 0:00:17.6]} 31... Ra3 {[%clk 0:00:25.8]} 32. Rd1 {[%clk 0:00:14.1]}
32... Rc3 {[%clk 0:00:19.5]} 33. Kf1 {[%clk 0:00:13.3]} 33... Nxd3 {[%clk
0:00:16.7]} 34. Qe2 {[%clk 0:00:12.8]} 34... Nf4 {[%clk 0:00:16.1]} 35. Qf2
{[%clk 0:00:12.7]} 35... Qxf2+ {[%clk 0:00:15.2]} 36. Kxf2 {[%clk 0:00:12.8]}
36... Rc2+ {[%clk 0:00:15.6]} 37. Kg3 {[%clk 0:00:12.9]} 37... Nxg2 {[%clk
0:00:15.6]} 38. Rxd4 {[%clk 0:00:13.2]} 38... g5 {[%clk 0:00:14.2]} 39. fxg6
{[%clk 0:00:12.8]} 39... fxg6 {[%clk 0:00:14.7]} 40. Rd8+ {[%clk 0:00:13.4]}
40... Kg7 {[%clk 0:00:15.2]} 41. Rd7+ {[%clk 0:00:14.3]} 41... Kf6 {[%clk
0:00:15.8]} 42. Rxc7 {[%clk 0:00:15.2]} 42... Kg5 {[%clk 0:00:13.8]} 43. Rc6
{[%clk 0:00:13.9]} 43... Nf4 {[%clk 0:00:13.2]} 0-1

[Event "Late-Titled-Tuesday-Blitz-July-09-2024"]
[Site "Chess.com"]
[Date "2024.07.09"]
[Round "6"]
[White "DanLowinger"]
[Black "Lector118"]
[Result "0-1"]
[WhiteElo "2403"]
[BlackElo "2649"]
[TimeControl "180+1"]
[EndTime "15:05:25 PDT"]
[Termination "Lector118 won by resignation"]

1. e4 {[%clk 0:03:00.9]} 1... c6 {[%clk 0:02:58.6]} 2. d4 {[%clk 0:03:00]} 2...
g6 {[%clk 0:02:58.5]} 3. Nc3 {[%clk 0:02:57.5]} 3... d5 {[%clk 0:02:58.5]} 4.
Nf3 {[%clk 0:02:56]} 4... Bg7 {[%clk 0:02:58.5]} 5. h3 {[%clk 0:02:56.2]} 5...
Nf6 {[%clk 0:02:58.3]} 6. Bd3 {[%clk 0:02:54.8]} 6... dxe4 {[%clk 0:02:58]} 7.
Nxe4 {[%clk 0:02:54.6]} 7... Nxe4 {[%clk 0:02:58.3]} 8. Bxe4 {[%clk 0:02:54.4]}
8... Nd7 {[%clk 0:02:59.2]} 9. c3 {[%clk 0:02:53.3]} 9... O-O {[%clk 0:02:59.3]}
10. O-O {[%clk 0:02:48.4]} 10... e5 {[%clk 0:02:59.3]} 11. Re1 {[%clk
0:02:33.1]} 11... exd4 {[%clk 0:02:56.2]} 12. Nxd4 {[%clk 0:02:28.2]} 12... Nc5
{[%clk 0:02:56.2]} 13. Bc2 {[%clk 0:02:25.2]} 13... Ne6 {[%clk 0:02:56.4]} 14.
Nf3 {[%clk 0:02:04.8]} 14... Qa5 {[%clk 0:02:43.9]} 15. Be3 {[%clk 0:01:46.5]}
15... Rd8 {[%clk 0:02:33.4]} 16. Qe2 {[%clk 0:01:46.4]} 16... Bd7 {[%clk
0:02:33.3]} 17. a4 {[%clk 0:01:34.6]} 17... Qc7 {[%clk 0:02:32]} 18. Bb3 {[%clk
0:01:32.3]} 18... Re8 {[%clk 0:02:21]} 19. Rad1 {[%clk 0:01:29.4]} 19... Rad8
{[%clk 0:02:16]} 20. Qc4 {[%clk 0:01:22.1]} 20... Bc8 {[%clk 0:02:10.2]} 21. Ng5
{[%clk 0:01:02.4]} 21... Nxg5 {[%clk 0:02:02.4]} 22. Bxg5 {[%clk 0:01:00.7]}
22... Rxd1 {[%clk 0:02:01.2]} 23. Rxd1 {[%clk 0:00:59.4]} 23... Be6 {[%clk
0:02:01.3]} 24. Qe4 {[%clk 0:00:48.6]} 24... Qb6 {[%clk 0:01:40.9]} 25. Bxe6
{[%clk 0:00:39]} 25... Rxe6 {[%clk 0:01:41.8]} 26. Qc2 {[%clk 0:00:31.4]} 26...
h6 {[%clk 0:01:39.4]} 27. Be3 {[%clk 0:00:29.9]} 27... Qa5 {[%clk 0:01:36.7]}
28. b4 {[%clk 0:00:26.1]} 28... Qc7 {[%clk 0:01:36.7]} 29. a5 {[%clk 0:00:23.1]}
29... a6 {[%clk 0:01:32.5]} 30. Qd3 {[%clk 0:00:23.4]} 30... Re8 {[%clk
0:01:17.7]} 31. Qd7 {[%clk 0:00:23]} 31... Rc8 {[%clk 0:00:59.8]} 32. Qxc7
{[%clk 0:00:15.9]} 32... Rxc7 {[%clk 0:01:00.7]} 33. Rd8+ {[%clk 0:00:15.6]}
33... Kh7 {[%clk 0:01:00.7]} 34. c4 {[%clk 0:00:14.6]} 34... Bc3 {[%clk
0:01:00.3]} 35. Bc5 {[%clk 0:00:13.6]} 35... Kg7 {[%clk 0:01:00.6]} 36. Kf1
{[%clk 0:00:12.2]} 36... Be5 {[%clk 0:00:59.3]} 37. Ke2 {[%clk 0:00:11.2]} 37...
f5 {[%clk 0:00:58.8]} 38. Kd3 {[%clk 0:00:09.9]} 38... Rf7 {[%clk 0:00:58.3]}
39. g3 {[%clk 0:00:07.4]} 39... g5 {[%clk 0:00:58.6]} 40. Ke3 {[%clk 0:00:06.9]}
40... f4+ {[%clk 0:00:58]} 41. Ke4 {[%clk 0:00:07.4]} 41... Bc7 {[%clk
0:00:57.6]} 42. Rd3 {[%clk 0:00:06]} 42... fxg3 {[%clk 0:00:57.7]} 43. fxg3
{[%clk 0:00:06.9]} 43... h5 {[%clk 0:00:54.5]} 44. Bd6 {[%clk 0:00:06.3]} 44...
Bd8 {[%clk 0:00:42.2]} 45. Be5+ {[%clk 0:00:06.5]} 45... Bf6 {[%clk 0:00:42.8]}
46. Bxf6+ {[%clk 0:00:03.3]} 46... Kxf6 {[%clk 0:00:43.7]} 47. Rd6+ {[%clk
0:00:03.5]} 47... Kg7 {[%clk 0:00:44]} 48. Ke5 {[%clk 0:00:02.9]} 48... Re7+
{[%clk 0:00:44.3]} 49. Kf5 {[%clk 0:00:02.1]} 49... h4 {[%clk 0:00:44.8]} 50. g4
{[%clk 0:00:01.9]} 50... Re3 {[%clk 0:00:43.9]} 51. Kxg5 {[%clk 0:00:02.8]}
51... Rxh3 {[%clk 0:00:43.8]} 52. Rd7+ {[%clk 0:00:03.4]} 52... Kf8 {[%clk
0:00:44.4]} 53. Rxb7 {[%clk 0:00:04.3]} 53... Rc3 {[%clk 0:00:43.9]} 54. Rb6
{[%clk 0:00:05.2]} 54... h3 {[%clk 0:00:43]} 55. Rxc6 {[%clk 0:00:05]} 55... h2
{[%clk 0:00:43.2]} 56. Rh6 {[%clk 0:00:05.9]} 56... Rxc4 {[%clk 0:00:43.5]} 57.
Rxh2 {[%clk 0:00:05.7]} 57... Rxb4 {[%clk 0:00:43.9]} 58. Rh8+ {[%clk
0:00:06.3]} 58... Kg7 {[%clk 0:00:43.8]} 59. Rh6 {[%clk 0:00:07.2]} 59... Rb5+
{[%clk 0:00:44.2]} 60. Kh4 {[%clk 0:00:06.5]} 60... Kxh6 {[%clk 0:00:44.9]} 0-1

[Event "Late-Titled-Tuesday-Blitz-July-09-2024"]
[Site "Chess.com"]
[Date "2024.07.09"]
[Round "6"]
[White "Os55555"]
[Black "LoonsDeKoeben"]
[Result "0-1"]
[WhiteElo "2304"]
[BlackElo "2439"]
[TimeControl "180+1"]
[EndTime "15:05:25 PDT"]
[Termination "LoonsDeKoeben won on time"]

1. b3 {[%clk 0:03:00.9]} 1... b6 {[%clk 0:02:59.1]} 2. Bb2 {[%clk 0:02:58.9]}
2... Bb7 {[%clk 0:02:59.4]} 3. e3 {[%clk 0:02:53.3]} 3... e6 {[%clk 0:02:59.3]}
4. Nf3 {[%clk 0:02:52.9]} 4... Nf6 {[%clk 0:02:59.5]} 5. g3 {[%clk 0:02:50.2]}
5... Be7 {[%clk 0:02:51.7]} 6. Bg2 {[%clk 0:02:50.3]} 6... O-O {[%clk
0:02:51.1]} 7. O-O {[%clk 0:02:50.2]} 7... c5 {[%clk 0:02:49.4]} 8. d3 {[%clk
0:02:50.1]} 8... Nc6 {[%clk 0:02:39]} 9. Nbd2 {[%clk 0:02:49.4]} 9... d5 {[%clk
0:02:36.7]} 10. Ne5 {[%clk 0:02:48.8]} 10... Nxe5 {[%clk 0:02:32.2]} 11. Bxe5
{[%clk 0:02:49.7]} 11... Nd7 {[%clk 0:02:32.8]} 12. Bb2 {[%clk 0:02:49.1]} 12...
Bf6 {[%clk 0:02:31]} 13. Qc1 {[%clk 0:02:42.3]} 13... Qc7 {[%clk 0:02:19.6]} 14.
e4 {[%clk 0:02:33]} 14... Bxb2 {[%clk 0:02:01.8]} 15. Qxb2 {[%clk 0:02:32.5]}
15... d4 {[%clk 0:02:01]} 16. a4 {[%clk 0:02:27.7]} 16... a6 {[%clk 0:01:56.8]}
17. f4 {[%clk 0:01:49.3]} 17... f5 {[%clk 0:01:23.4]} 18. Rfe1 {[%clk
0:01:35.1]} 18... Nf6 {[%clk 0:01:21.8]} 19. Nc4 {[%clk 0:01:10.2]} 19... fxe4
{[%clk 0:00:56.6]} 20. dxe4 {[%clk 0:01:09.4]} 20... b5 {[%clk 0:00:56.9]} 21.
Ne5 {[%clk 0:01:06.1]} 21... Nd7 {[%clk 0:00:47.1]} 22. Nxd7 {[%clk 0:00:56.8]}
22... Qxd7 {[%clk 0:00:46.7]} 23. c3 {[%clk 0:00:40.5]} 23... d3 {[%clk
0:00:41.4]} 24. c4 {[%clk 0:00:32]} 24... bxc4 {[%clk 0:00:32.6]} 25. bxc4
{[%clk 0:00:31.9]} 25... Rab8 {[%clk 0:00:33.5]} 26. Qd2 {[%clk 0:00:28.8]}
26... Bc6 {[%clk 0:00:31.4]} 27. Ra3 {[%clk 0:00:25.4]} 27... Qd4+ {[%clk
0:00:27.3]} 28. Kh1 {[%clk 0:00:23.5]} 28... Qxc4 {[%clk 0:00:24.2]} 29. Rc1
{[%clk 0:00:18.4]} 29... Qb4 {[%clk 0:00:15.6]} 30. Rxd3 {[%clk 0:00:17]} 30...
Bxe4 {[%clk 0:00:14]} 31. Bxe4 {[%clk 0:00:13.4]} 31... Qxe4+ {[%clk 0:00:13.5]}
32. Kg1 {[%clk 0:00:13.6]} 32... Rb2 {[%clk 0:00:13.5]} 33. Qxb2 {[%clk
0:00:07.8]} 33... Qxd3 {[%clk 0:00:13.8]} 34. Re1 {[%clk 0:00:05.1]} 34... c4
{[%clk 0:00:10.9]} 35. Rxe6 {[%clk 0:00:03.2]} 35... c3 {[%clk 0:00:11.2]} 36.
Qc1 {[%clk 0:00:03.6]} 36... c2 {[%clk 0:00:10.2]} 37. Re1 {[%clk 0:00:02.6]}
37... Rd8 {[%clk 0:00:09.5]} 38. Kf2 {[%clk 0:00:01.4]} 38... Qd2+ {[%clk
0:00:08.3]} 0-1

[Event "Late-Titled-Tuesday-Blitz-July-09-2024"]
[Site "Chess.com"]
[Date "2024.07.09"]
[Round "6"]
[White "mind1mover"]
[Black "Chessmatus"]
[Result "1-0"]
[WhiteElo "2810"]
[BlackElo "2516"]
[TimeControl "180+1"]
[EndTime "15:05:26 PDT"]
[Termination "mind1mover won on time"]

1. Nf3 {[%clk 0:03:00.9]} 1... Nf6 {[%clk 0:02:58.1]} 2. c4 {[%clk 0:03:00.8]}
2... g6 {[%clk 0:02:57.9]} 3. Nc3 {[%clk 0:03:00.1]} 3... d5 {[%clk 0:02:57.2]}
4. d4 {[%clk 0:02:56.5]} 4... Bg7 {[%clk 0:02:56.3]} 5. Bg5 {[%clk 0:02:56.9]}
5... Ne4 {[%clk 0:02:55.4]} 6. Bf4 {[%clk 0:02:57.2]} 6... Nxc3 {[%clk
0:02:55.2]} 7. bxc3 {[%clk 0:02:58.1]} 7... dxc4 {[%clk 0:02:55.3]} 8. e3 {[%clk
0:02:55.6]} 8... Be6 {[%clk 0:02:52.6]} 9. Qb1 {[%clk 0:02:49.8]} 9... b6 {[%clk
0:02:08.6]} 10. Ng5 {[%clk 0:02:48.5]} 10... Bd5 {[%clk 0:02:07.2]} 11. e4
{[%clk 0:02:45.5]} 11... h6 {[%clk 0:02:07.2]} 12. Nf3 {[%clk 0:02:40.3]} 12...
Be6 {[%clk 0:02:06.9]} 13. Be2 {[%clk 0:02:23.9]} 13... O-O {[%clk 0:02:02.4]}
14. O-O {[%clk 0:02:10.7]} 14... c6 {[%clk 0:02:02.6]} 15. a4 {[%clk 0:02:02.1]}
15... a6 {[%clk 0:02:01.4]} 16. Ne5 {[%clk 0:01:45.2]} 16... b5 {[%clk
0:01:58.8]} 17. Bf3 {[%clk 0:01:39]} 17... Qc8 {[%clk 0:01:30.3]} 18. Qc1 {[%clk
0:01:20.3]} 18... Kh7 {[%clk 0:01:27.1]} 19. axb5 {[%clk 0:01:20.2]} 19... cxb5
{[%clk 0:01:26.4]} 20. d5 {[%clk 0:01:20.8]} 20... Bd7 {[%clk 0:01:24.2]} 21. h4
{[%clk 0:01:12.1]} 21... h5 {[%clk 0:01:10.2]} 22. Be2 {[%clk 0:00:59.2]} 22...
Bf6 {[%clk 0:01:04.7]} 23. Bg3 {[%clk 0:00:52.5]} 23... Be8 {[%clk 0:00:45.3]}
24. f4 {[%clk 0:00:52.3]} 24... Nd7 {[%clk 0:00:44.1]} 25. Nf3 {[%clk
0:00:52.1]} 25... Nc5 {[%clk 0:00:42.6]} 26. e5 {[%clk 0:00:50.8]} 26... Bg7
{[%clk 0:00:42.6]} 27. Ng5+ {[%clk 0:00:51.4]} 27... Kg8 {[%clk 0:00:42.1]} 28.
f5 {[%clk 0:00:51.8]} 28... Nd3 {[%clk 0:00:40.8]} 29. Bxd3 {[%clk 0:00:35]}
29... cxd3 {[%clk 0:00:41.7]} 30. fxg6 {[%clk 0:00:31.9]} 30... Qg4 {[%clk
0:00:34.4]} 31. Qe3 {[%clk 0:00:21.5]} 31... f6 {[%clk 0:00:20.5]} 32. Ne6
{[%clk 0:00:17.9]} 32... Qxg6 {[%clk 0:00:06.8]} 33. Nxf8 {[%clk 0:00:18.4]}
33... Kxf8 {[%clk 0:00:07.1]} 34. d6 {[%clk 0:00:17.1]} 34... Bc6 {[%clk
0:00:05.3]} 35. dxe7+ {[%clk 0:00:16]} 35... Ke8 {[%clk 0:00:04.9]} 36. exf6
{[%clk 0:00:07.6]} 36... Bxf6 {[%clk 0:00:04.7]} 37. Rad1 {[%clk 0:00:02.7]}
37... Be4 {[%clk 0:00:01.8]} 38. Rde1 {[%clk 0:00:02.1]} 1-0

[Event "Late-Titled-Tuesday-Blitz-July-09-2024"]
[Site "Chess.com"]
[Date "2024.07.09"]
[Round "6"]
[White "KaydenTroffChess"]
[Black "scandalgod"]
[Result "0-1"]
[WhiteElo "2874"]
[BlackElo "2669"]
[TimeControl "180+1"]
[EndTime "15:05:27 PDT"]
[Termination "scandalgod won by resignation"]

1. d4 {[%clk 0:03:00.9]} 1... d5 {[%clk 0:02:57.7]} 2. Nf3 {[%clk 0:03:01.1]}
2... Nf6 {[%clk 0:02:56.8]} 3. Bf4 {[%clk 0:03:01.2]} 3... e6 {[%clk 0:02:56.8]}
4. e3 {[%clk 0:03:01.6]} 4... Bd6 {[%clk 0:02:56.7]} 5. Ne5 {[%clk 0:03:01.7]}
5... O-O {[%clk 0:02:55.1]} 6. Nd2 {[%clk 0:02:59.6]} 6... c5 {[%clk 0:02:55.2]}
7. c3 {[%clk 0:02:59.9]} 7... Qc7 {[%clk 0:02:54.9]} 8. Bg3 {[%clk 0:02:59.4]}
8... Nbd7 {[%clk 0:02:47.4]} 9. f4 {[%clk 0:02:54]} 9... b6 {[%clk 0:02:45.8]}
10. Bd3 {[%clk 0:02:51.3]} 10... Bb7 {[%clk 0:02:44.6]} 11. Bh4 {[%clk
0:02:50.7]} 11... Ne4 {[%clk 0:02:39.9]} 12. Bxe4 {[%clk 0:02:46.9]} 12... dxe4
{[%clk 0:02:34.5]} 13. O-O {[%clk 0:02:45.2]} 13... f6 {[%clk 0:02:26.5]} 14.
Qg4 {[%clk 0:02:37.7]} 14... Rae8 {[%clk 0:01:59.2]} 15. Nxd7 {[%clk 0:02:26.1]}
15... Qxd7 {[%clk 0:01:58.5]} 16. Rad1 {[%clk 0:02:25]} 16... cxd4 {[%clk
0:01:55.1]} 17. exd4 {[%clk 0:02:22.4]} 17... Ba6 {[%clk 0:01:51.5]} 18. Rfe1
{[%clk 0:02:21.1]} 18... f5 {[%clk 0:01:49.8]} 19. Qg3 {[%clk 0:02:06.4]} 19...
Qc7 {[%clk 0:01:49.4]} 20. Bg5 {[%clk 0:02:05.6]} 20... Kh8 {[%clk 0:01:46.6]}
21. Qh4 {[%clk 0:01:43.7]} 21... Kg8 {[%clk 0:01:13.8]} 22. Re3 {[%clk
0:01:41.7]} 22... h6 {[%clk 0:00:58.7]} 23. Rh3 {[%clk 0:00:55.2]} 23... Rf7
{[%clk 0:00:44.6]} 24. Qh5 {[%clk 0:00:48.7]} 24... Bxf4 {[%clk 0:00:39.1]} 25.
Bxf4 {[%clk 0:00:45.1]} 25... Qxf4 {[%clk 0:00:38.7]} 26. Nf1 {[%clk 0:00:45.4]}
26... e5 {[%clk 0:00:24.8]} 27. d5 {[%clk 0:00:31]} 27... Qg5 {[%clk 0:00:22.1]}
28. Qxg5 {[%clk 0:00:21.8]} 28... hxg5 {[%clk 0:00:22]} 29. Ng3 {[%clk
0:00:20.5]} 29... g6 {[%clk 0:00:19.2]} 30. b3 {[%clk 0:00:14.1]} 30... Bd3
{[%clk 0:00:19.3]} 31. c4 {[%clk 0:00:14]} 31... Rd7 {[%clk 0:00:18.1]} 32. Nf1
{[%clk 0:00:14.3]} 32... Kg7 {[%clk 0:00:17.6]} 33. Re3 {[%clk 0:00:13.9]} 33...
Kf6 {[%clk 0:00:16.7]} 34. Kf2 {[%clk 0:00:13.5]} 34... Rc8 {[%clk 0:00:15.2]}
35. g3 {[%clk 0:00:09]} 35... b5 {[%clk 0:00:15]} 36. Rexd3 {[%clk 0:00:03.9]}
36... exd3 {[%clk 0:00:14.4]} 37. Ne3 {[%clk 0:00:04.4]} 37... bxc4 {[%clk
0:00:13.5]} 38. bxc4 {[%clk 0:00:04.3]} 38... e4 {[%clk 0:00:14]} 39. Rb1 {[%clk
0:00:04.5]} 39... Rd6 {[%clk 0:00:12.8]} 40. Ke1 {[%clk 0:00:02.9]} 40... f4
{[%clk 0:00:12.9]} 41. gxf4 {[%clk 0:00:02.2]} 41... gxf4 {[%clk 0:00:13.8]} 42.
Ng4+ {[%clk 0:00:02.9]} 42... Kf5 {[%clk 0:00:14.2]} 43. Nf2 {[%clk 0:00:03.1]}
43... Ke5 {[%clk 0:00:13.2]} 44. Rc1 {[%clk 0:00:02.9]} 44... Kd4 {[%clk
0:00:13.4]} 45. Kd2 {[%clk 0:00:03.2]} 45... e3+ {[%clk 0:00:13.5]} 46. Ke1
{[%clk 0:00:03.5]} 46... d2+ {[%clk 0:00:12.6]} 47. Kd1 {[%clk 0:00:03.9]} 47...
dxc1=Q+ {[%clk 0:00:12.7]} 0-1

[Event "Late-Titled-Tuesday-Blitz-July-09-2024"]
[Site "Chess.com"]
[Date "2024.07.09"]
[Round "6"]
[White "dropstoneDP"]
[Black "grzechu96"]
[Result "0-1"]
[WhiteElo "3016"]
[BlackElo "2816"]
[TimeControl "180+1"]
[EndTime "15:05:29 PDT"]
[Termination "grzechu96 won on time"]

1. e4 {[%clk 0:02:09.7]} 1... c5 {[%clk 0:02:59.9]} 2. Nf3 {[%clk 0:02:08.9]}
2... d6 {[%clk 0:03:00.3]} 3. d4 {[%clk 0:02:09.1]} 3... cxd4 {[%clk 0:03:01.2]}
4. Nxd4 {[%clk 0:02:09.4]} 4... Nf6 {[%clk 0:03:01.6]} 5. Nc3 {[%clk 0:02:09.9]}
5... a6 {[%clk 0:03:02]} 6. Be3 {[%clk 0:02:05.4]} 6... e6 {[%clk 0:03:00.2]} 7.
g4 {[%clk 0:02:03.7]} 7... e5 {[%clk 0:02:58.7]} 8. Nf5 {[%clk 0:02:04]} 8... g6
{[%clk 0:02:58.3]} 9. g5 {[%clk 0:02:03.2]} 9... gxf5 {[%clk 0:02:56.8]} 10.
exf5 {[%clk 0:02:03.7]} 10... d5 {[%clk 0:02:54.9]} 11. Qf3 {[%clk 0:02:04]}
11... Ne4 {[%clk 0:02:52.8]} 12. Nxe4 {[%clk 0:02:01.8]} 12... dxe4 {[%clk
0:02:53.7]} 13. Qxe4 {[%clk 0:02:02]} 13... Nc6 {[%clk 0:02:48.9]} 14. Bc4
{[%clk 0:01:53.7]} 14... Qd7 {[%clk 0:02:47.9]} 15. g6 {[%clk 0:01:53.5]} 15...
fxg6 {[%clk 0:02:47.8]} 16. fxg6 {[%clk 0:01:53.2]} 16... Qe7 {[%clk 0:02:45.9]}
17. O-O-O {[%clk 0:01:43.7]} 17... Be6 {[%clk 0:02:45.7]} 18. Kb1 {[%clk
0:01:26.6]} 18... Bxc4 {[%clk 0:02:39.1]} 19. Qxc4 {[%clk 0:01:27.5]} 19... hxg6
{[%clk 0:02:38.8]} 20. Qg4 {[%clk 0:01:22.7]} 20... Qf7 {[%clk 0:02:32.2]} 21.
Rhe1 {[%clk 0:01:06.9]} 21... Qf5 {[%clk 0:02:21]} 22. Qc4 {[%clk 0:01:05.5]}
22... Rd8 {[%clk 0:01:57.6]} 23. f4 {[%clk 0:00:51.3]} 23... Rxd1+ {[%clk
0:00:53.2]} 24. Rxd1 {[%clk 0:00:52.2]} 24... Bh6 {[%clk 0:00:52.9]} 25. Qb3
{[%clk 0:00:42.6]} 25... Qf7 {[%clk 0:00:46.7]} 26. Qd3 {[%clk 0:00:27.9]} 26...
O-O {[%clk 0:00:38.6]} 27. Rg1 {[%clk 0:00:24.4]} 27... Kh7 {[%clk 0:00:35.6]}
28. h4 {[%clk 0:00:17.1]} 28... Rd8 {[%clk 0:00:24.8]} 29. Qe4 {[%clk
0:00:06.4]} 29... Qf5 {[%clk 0:00:24.2]} 30. Qc4 {[%clk 0:00:06.8]} 30... exf4
{[%clk 0:00:22.9]} 31. Bc1 {[%clk 0:00:07.2]} 31... f3 {[%clk 0:00:21.3]} 32. h5
{[%clk 0:00:07.7]} 32... f2 {[%clk 0:00:08.1]} 33. hxg6+ {[%clk 0:00:07]} 33...
Kg7 {[%clk 0:00:08]} 34. Qc3+ {[%clk 0:00:05.9]} 34... Kg8 {[%clk 0:00:07.3]}
35. Qc4+ {[%clk 0:00:03.2]} 35... Qd5 {[%clk 0:00:07.5]} 36. Qxd5+ {[%clk
0:00:02.1]} 36... Rxd5 {[%clk 0:00:08.4]} 37. Rf1 {[%clk 0:00:02.4]} 37... Bxc1
{[%clk 0:00:08.2]} 38. Kxc1 {[%clk 0:00:02.3]} 38... Rf5 {[%clk 0:00:08.4]} 39.
Kd2 {[%clk 0:00:02.8]} 39... Ne5 {[%clk 0:00:08.8]} 40. Ke2 {[%clk 0:00:02.5]}
40... Ng4 {[%clk 0:00:09.1]} 41. c3 {[%clk 0:00:02]} 41... Kg7 {[%clk
0:00:09.3]} 42. Rc1 {[%clk 0:00:01]} 42... Nh2 {[%clk 0:00:09]} 43. Rh1 {[%clk
0:00:01]} 43... f1=Q+ {[%clk 0:00:09.3]} 0-1